[Event "*** Titled Tuesday Blitz"]
[Site "Chess.com"]
[Date "2021.04.20"]
[Round "1"]
[White "martinique24"]
[Black "Hikaru"]
[Result "0-1"]
[WhiteElo "2472"]
[BlackElo "3161"]
[TimeControl "180+1"]
[EndTime "10:06:58 PDT"]
[Termination "Hikaru won by resignation"]

1. e4 {[%clk 0:03:00.6]} 1... g6 {[%clk 0:02:59.4]} 2. d4 {[%clk 0:03:00.2]}
2... Bg7 {[%clk 0:02:59.1]} 3. Nc3 {[%clk 0:02:59.9]} 3... c6 {[%clk 0:02:57.3]}
4. f4 {[%clk 0:02:58.6]} 4... d5 {[%clk 0:02:57.6]} 5. e5 {[%clk 0:02:58.4]}
5... h5 {[%clk 0:02:58.3]} 6. Nf3 {[%clk 0:02:58]} 6... Bg4 {[%clk 0:02:58.5]}
7. Be3 {[%clk 0:02:49.4]} 7... Nh6 {[%clk 0:02:58.3]} 8. h3 {[%clk 0:02:49.6]}
8... Nf5 {[%clk 0:02:59.2]} 9. Bf2 {[%clk 0:02:49.2]} 9... Bxf3 {[%clk
0:02:59.8]} 10. Qxf3 {[%clk 0:02:50.1]} 10... h4 {[%clk 0:03:00.7]} 11. Bd3
{[%clk 0:02:49.5]} 11... e6 {[%clk 0:03:00.7]} 12. O-O {[%clk 0:02:46.6]} 12...
Nd7 {[%clk 0:03:00.6]} 13. Ne2 {[%clk 0:02:40.6]} 13... Bf8 {[%clk 0:02:58.4]}
14. Kh2 {[%clk 0:02:39.7]} 14... Rc8 {[%clk 0:02:56.3]} 15. Ng1 {[%clk
0:02:38.8]} 15... c5 {[%clk 0:02:53]} 16. c3 {[%clk 0:02:37.4]} 16... cxd4
{[%clk 0:02:51.7]} 17. cxd4 {[%clk 0:02:37.2]} 17... Nb8 {[%clk 0:02:49.6]} 18.
Qe2 {[%clk 0:02:34.8]} 18... Nc6 {[%clk 0:02:49.7]} 19. Nf3 {[%clk 0:02:34.4]}
19... Be7 {[%clk 0:02:49.8]} 20. Rac1 {[%clk 0:02:30.5]} 20... Kf8 {[%clk
0:02:49.9]} 21. a3 {[%clk 0:02:12.7]} 21... Kg7 {[%clk 0:02:48.9]} 22. Rc2
{[%clk 0:02:09.2]} 22... Nb8 {[%clk 0:02:32.6]} 23. Rfc1 {[%clk 0:02:07.4]}
23... Rxc2 {[%clk 0:02:32.4]} 24. Qxc2 {[%clk 0:02:03.8]} 24... Nc6 {[%clk
0:02:32.7]} 25. Qb3 {[%clk 0:01:56.7]} 25... Qb8 {[%clk 0:02:29.9]} 26. Qb5
{[%clk 0:01:30.8]} 26... a6 {[%clk 0:02:25.9]} 27. Qb6 {[%clk 0:01:21.6]} 27...
Bd8 {[%clk 0:02:16.3]} 28. Qb3 {[%clk 0:01:21.1]} 28... Qc7 {[%clk 0:02:16.2]}
29. a4 {[%clk 0:01:08.7]} 29... Qd7 {[%clk 0:02:09.4]} 30. Qd1 {[%clk
0:00:54.9]} 30... Qc7 {[%clk 0:01:49.1]} 31. b3 {[%clk 0:00:53.5]} 31... Qb6
{[%clk 0:01:48.7]} 32. Bb1 {[%clk 0:00:50.9]} 32... Be7 {[%clk 0:01:47.8]} 33.
Bxf5 {[%clk 0:00:41.7]} 33... exf5 {[%clk 0:01:45.3]} 34. Rc3 {[%clk 0:00:30.8]}
34... Nd8 {[%clk 0:01:44.2]} 35. Ng5 {[%clk 0:00:27.4]} 35... Bxg5 {[%clk
0:01:41.5]} 36. fxg5 {[%clk 0:00:28.3]} 36... Ne6 {[%clk 0:01:42.1]} 37. Qe1
{[%clk 0:00:27.6]} 37... Qb4 {[%clk 0:01:38]} 38. Rd3 {[%clk 0:00:11.5]} 38...
Qxe1 {[%clk 0:01:36.7]} 39. Bxe1 {[%clk 0:00:12.4]} 39... Nxg5 {[%clk
0:01:37.1]} 40. Rc3 {[%clk 0:00:12.8]} 40... Ne6 {[%clk 0:01:37.5]} 41. Bf2
{[%clk 0:00:11.9]} 41... g5 {[%clk 0:01:37.7]} 42. Kg1 {[%clk 0:00:11.8]} 42...
Rd8 {[%clk 0:01:31.9]} 43. Kf1 {[%clk 0:00:11.7]} 43... Rd7 {[%clk 0:01:32.5]}
44. Ke2 {[%clk 0:00:12.1]} 44... Rc7 {[%clk 0:01:32.8]} 45. Rxc7 {[%clk
0:00:11.7]} 45... Nxc7 {[%clk 0:01:33.2]} 46. Kd3 {[%clk 0:00:12.3]} 46... Kf8
{[%clk 0:01:30.6]} 47. b4 {[%clk 0:00:12.7]} 47... b5 {[%clk 0:01:28]} 48. axb5
{[%clk 0:00:11.7]} 48... axb5 {[%clk 0:01:28.9]} 49. g3 {[%clk 0:00:12.4]} 49...
hxg3 {[%clk 0:01:27.7]} 50. Bxg3 {[%clk 0:00:13.3]} 50... Ne6 {[%clk 0:01:27.9]}
51. h4 {[%clk 0:00:13.2]} 51... f4 {[%clk 0:01:28.1]} 52. Be1 {[%clk 0:00:11]}
52... g4 {[%clk 0:01:28.5]} 53. h5 {[%clk 0:00:11.5]} 53... Kg7 {[%clk
0:01:27.6]} 54. Bh4 {[%clk 0:00:11.8]} 54... Kh6 {[%clk 0:01:27.2]} 55. Ke2
{[%clk 0:00:08.2]} 55... f3+ {[%clk 0:01:26.6]} 56. Ke3 {[%clk 0:00:08.2]} 56...
Kxh5 {[%clk 0:01:27.5]} 57. Bf6 {[%clk 0:00:08]} 57... Kg6 {[%clk 0:01:26.6]}
58. Be7 {[%clk 0:00:05.5]} 58... Kf5 {[%clk 0:01:26.6]} 59. Bf6 {[%clk
0:00:06.2]} 59... Nf8 {[%clk 0:01:24.7]} 60. Be7 {[%clk 0:00:05.7]} 60... Nd7
{[%clk 0:01:25.1]} 61. Bd8 {[%clk 0:00:05.4]} 61... Nb8 {[%clk 0:01:24.6]} 62.
Bf6 {[%clk 0:00:05.2]} 62... Nc6 {[%clk 0:01:24.9]} 0-1

[Event "*** Titled Tuesday Blitz"]
[Site "Chess.com"]
[Date "2021.04.20"]
[Round "1"]
[White "Genghis_K"]
[Black "JoachimMouhamad"]
[Result "1-0"]
[WhiteElo "2943"]
[BlackElo "2463"]
[TimeControl "180+1"]
[EndTime "10:07:00 PDT"]
[Termination "Genghis_K won on time"]

1. e4 {[%clk 0:02:53.5]} 1... e5 {[%clk 0:02:59.1]} 2. Nf3 {[%clk 0:02:52.6]}
2... Nc6 {[%clk 0:02:58.8]} 3. Bb5 {[%clk 0:02:50.9]} 3... a6 {[%clk 0:02:58.7]}
4. Ba4 {[%clk 0:02:44.7]} 4... Nf6 {[%clk 0:02:57.8]} 5. O-O {[%clk 0:02:44.8]}
5... Be7 {[%clk 0:02:57.1]} 6. Re1 {[%clk 0:02:44]} 6... b5 {[%clk 0:02:57.7]}
7. Bb3 {[%clk 0:02:44.2]} 7... d6 {[%clk 0:02:58.4]} 8. c3 {[%clk 0:02:44.1]}
8... O-O {[%clk 0:02:58.5]} 9. a4 {[%clk 0:02:36.7]} 9... Bb7 {[%clk 0:02:45.3]}
10. d4 {[%clk 0:02:20.6]} 10... h6 {[%clk 0:02:16.5]} 11. Nbd2 {[%clk
0:02:05.4]} 11... Re8 {[%clk 0:02:14.8]} 12. Bc2 {[%clk 0:02:04]} 12... Nb8
{[%clk 0:02:09.7]} 13. dxe5 {[%clk 0:01:58.5]} 13... dxe5 {[%clk 0:02:09.5]} 14.
Nxe5 {[%clk 0:01:59.4]} 14... Bc5 {[%clk 0:01:45.9]} 15. Nef3 {[%clk 0:01:50.6]}
15... Ng4 {[%clk 0:01:42.9]} 16. Nd4 {[%clk 0:01:23.7]} 16... Qh4 {[%clk
0:01:32.8]} 17. N2f3 {[%clk 0:01:19.8]} 17... Qxf2+ {[%clk 0:01:30.7]} 18. Kh1
{[%clk 0:01:18.8]} 18... Nd7 {[%clk 0:01:10.2]} 19. Rf1 {[%clk 0:00:58.6]} 19...
Bxe4 {[%clk 0:01:00.6]} 20. Bxe4 {[%clk 0:00:52.1]} 20... Rxe4 {[%clk
0:01:01.5]} 21. h3 {[%clk 0:00:52.1]} 21... Qg3 {[%clk 0:00:54.6]} 22. hxg4
{[%clk 0:00:35.2]} 22... Nf6 {[%clk 0:00:53.1]} 23. Nh2 {[%clk 0:00:12.2]} 23...
Rae8 {[%clk 0:00:46.3]} 24. Qf3 {[%clk 0:00:10.5]} 24... Qh4 {[%clk 0:00:14.4]}
25. Qh3 {[%clk 0:00:09.5]} 25... Qxh3 {[%clk 0:00:03.4]} 26. gxh3 {[%clk
0:00:10.4]} 26... Bxd4 {[%clk 0:00:03.1]} 27. cxd4 {[%clk 0:00:10.3]} 27... Rxd4
{[%clk 0:00:01.9]} 28. Bxh6 {[%clk 0:00:10.6]} 1-0

[Event "*** Titled Tuesday Blitz"]
[Site "Chess.com"]
[Date "2021.04.20"]
[Round "1"]
[White "NTBT_DHS"]
[Black "supertfc"]
[Result "1-0"]
[WhiteElo "2701"]
[BlackElo "2372"]
[TimeControl "180+1"]
[EndTime "10:07:00 PDT"]
[Termination "NTBT_DHS won on time"]

1. e4 {[%clk 0:02:51.9]} 1... e5 {[%clk 0:02:56.9]} 2. Nf3 {[%clk 0:02:52]} 2...
Nc6 {[%clk 0:02:51.2]} 3. Bc4 {[%clk 0:02:52.4]} 3... Nf6 {[%clk 0:02:50.9]} 4.
Ng5 {[%clk 0:02:52.3]} 4... d5 {[%clk 0:02:50.8]} 5. exd5 {[%clk 0:02:53.2]}
5... Na5 {[%clk 0:02:51.2]} 6. Bb5+ {[%clk 0:02:49.3]} 6... c6 {[%clk
0:02:51.3]} 7. dxc6 {[%clk 0:02:50.2]} 7... bxc6 {[%clk 0:02:52.2]} 8. Bd3
{[%clk 0:02:50.6]} 8... h6 {[%clk 0:02:50.2]} 9. Ne4 {[%clk 0:02:49.3]} 9...
Nxe4 {[%clk 0:02:37]} 10. Bxe4 {[%clk 0:02:50.2]} 10... Bd6 {[%clk 0:02:36.6]}
11. O-O {[%clk 0:02:47.9]} 11... O-O {[%clk 0:02:35.7]} 12. d3 {[%clk
0:02:46.3]} 12... f5 {[%clk 0:02:33.8]} 13. Bf3 {[%clk 0:02:46.5]} 13... Rb8
{[%clk 0:02:30.6]} 14. Nc3 {[%clk 0:02:41.9]} 14... c5 {[%clk 0:02:26.7]} 15.
Bd5+ {[%clk 0:02:36.1]} 15... Kh8 {[%clk 0:02:25.1]} 16. Qh5 {[%clk 0:02:36.2]}
16... Qf6 {[%clk 0:02:19.3]} 17. h4 {[%clk 0:02:24.1]} 17... Bd7 {[%clk
0:02:04.2]} 18. Bg5 {[%clk 0:02:04.2]} 18... Be8 {[%clk 0:02:02.9]} 19. Qxe8
{[%clk 0:02:03.8]} 19... Rbxe8 {[%clk 0:01:52.2]} 20. Bxf6 {[%clk 0:02:03.5]}
20... Rxf6 {[%clk 0:01:53.1]} 21. Rae1 {[%clk 0:01:58.9]} 21... Rb8 {[%clk
0:01:49.1]} 22. b3 {[%clk 0:01:58.6]} 22... Bc7 {[%clk 0:01:37.6]} 23. g3 {[%clk
0:01:47.3]} 23... Nc6 {[%clk 0:01:33.8]} 24. Bxc6 {[%clk 0:01:44.3]} 24... Rxc6
{[%clk 0:01:34.7]} 25. Nd5 {[%clk 0:01:44.6]} 25... Bd6 {[%clk 0:01:31.8]} 26.
c4 {[%clk 0:01:44.4]} 26... a5 {[%clk 0:01:25.6]} 27. h5 {[%clk 0:01:32.4]}
27... a4 {[%clk 0:01:23.8]} 28. Rb1 {[%clk 0:01:26.8]} 28... Ra6 {[%clk
0:01:12.5]} 29. bxa4 {[%clk 0:01:20.6]} 29... Rba8 {[%clk 0:01:06.8]} 30. Rb5
{[%clk 0:01:11.9]} 30... Kg8 {[%clk 0:00:54]} 31. Rfb1 {[%clk 0:01:10.8]} 31...
R8a7 {[%clk 0:00:49.6]} 32. Nb6 {[%clk 0:01:08.1]} 32... Bf8 {[%clk 0:00:33.2]}
33. Kg2 {[%clk 0:00:52]} 33... Kf7 {[%clk 0:00:25.6]} 34. Nc8 {[%clk 0:00:50.1]}
34... Rc7 {[%clk 0:00:22]} 35. Rb7 {[%clk 0:00:50]} 35... Rxb7 {[%clk
0:00:15.5]} 36. Rxb7+ {[%clk 0:00:50.9]} 36... Ke6 {[%clk 0:00:14.8]} 37. Nb6
{[%clk 0:00:50.4]} 37... Bd6 {[%clk 0:00:03.1]} 38. Kf3 {[%clk 0:00:41.9]} 38...
Ra5 {[%clk 0:00:02.1]} 39. Nc8 {[%clk 0:00:40.2]} 39... Ra6 {[%clk 0:00:01.4]}
40. Rxg7 {[%clk 0:00:39.3]} 1-0

[Event "*** Titled Tuesday Blitz"]
[Site "Chess.com"]
[Date "2021.04.20"]
[Round "1"]
[White "barbara25"]
[Black "Harry_Rakkel"]
[Result "1/2-1/2"]
[WhiteElo "2309"]
[BlackElo "2598"]
[TimeControl "180+1"]
[EndTime "10:07:04 PDT"]
[Termination "Game drawn by repetition"]

1. e4 {[%clk 0:02:47.9]} 1... c5 {[%clk 0:02:59]} 2. Nf3 {[%clk 0:02:46.5]} 2...
e6 {[%clk 0:02:59]} 3. g3 {[%clk 0:02:42.5]} 3... Nc6 {[%clk 0:02:57.8]} 4. Bg2
{[%clk 0:02:39.8]} 4... Nf6 {[%clk 0:02:56.3]} 5. d3 {[%clk 0:02:39.4]} 5... Be7
{[%clk 0:02:54]} 6. O-O {[%clk 0:02:38.9]} 6... d5 {[%clk 0:02:53.7]} 7. exd5
{[%clk 0:02:38.4]} 7... Nxd5 {[%clk 0:02:53.4]} 8. d4 {[%clk 0:02:38.7]} 8...
O-O {[%clk 0:02:49.5]} 9. Re1 {[%clk 0:02:38]} 9... cxd4 {[%clk 0:02:45.6]} 10.
Nxd4 {[%clk 0:02:37.1]} 10... Nxd4 {[%clk 0:02:45.6]} 11. Qxd4 {[%clk 0:02:37]}
11... Bf6 {[%clk 0:02:45.6]} 12. Qd1 {[%clk 0:02:35.5]} 12... Bd7 {[%clk
0:02:40.8]} 13. c4 {[%clk 0:02:35]} 13... Nb4 {[%clk 0:02:40.4]} 14. Nc3 {[%clk
0:02:31.8]} 14... Bc6 {[%clk 0:02:39]} 15. a3 {[%clk 0:02:24.5]} 15... Qxd1
{[%clk 0:02:32.3]} 16. Rxd1 {[%clk 0:02:23.3]} 16... Bxc3 {[%clk 0:02:25.4]} 17.
bxc3 {[%clk 0:02:20.3]} 17... Na6 {[%clk 0:02:06.3]} 18. Bxc6 {[%clk 0:02:18.7]}
18... bxc6 {[%clk 0:02:07.2]} 19. Be3 {[%clk 0:02:17.5]} 19... Rfb8 {[%clk
0:02:00.2]} 20. Rd7 {[%clk 0:02:13.9]} 20... c5 {[%clk 0:01:57.1]} 21. Rad1
{[%clk 0:02:11.9]} 21... h5 {[%clk 0:01:53.7]} 22. Re7 {[%clk 0:02:10.4]} 22...
Re8 {[%clk 0:01:50.9]} 23. Rxe8+ {[%clk 0:01:59.5]} 23... Rxe8 {[%clk
0:01:50.2]} 24. Rd6 {[%clk 0:01:59.3]} 24... Nb8 {[%clk 0:01:44.5]} 25. Bxc5
{[%clk 0:01:58.3]} 25... Rc8 {[%clk 0:01:33.2]} 26. Bxa7 {[%clk 0:01:57.4]}
26... Nc6 {[%clk 0:01:33.2]} 27. Bb6 {[%clk 0:01:55.6]} 27... Kf8 {[%clk
0:01:32]} 28. c5 {[%clk 0:01:53.5]} 28... Ke7 {[%clk 0:01:29]} 29. a4 {[%clk
0:01:48.2]} 29... Ne5 {[%clk 0:01:28.8]} 30. a5 {[%clk 0:01:39.1]} 30... Ra8
{[%clk 0:01:28.9]} 31. f4 {[%clk 0:01:18]} 31... Nc4 {[%clk 0:01:23.8]} 32. Rc6
{[%clk 0:01:17.6]} 32... Nxa5 {[%clk 0:01:22.9]} 33. Rc7+ {[%clk 0:01:17]} 33...
Kf6 {[%clk 0:01:23]} 34. c6 {[%clk 0:01:12.8]} 34... Kg6 {[%clk 0:01:15]} 35.
Bd4 {[%clk 0:01:09.6]} 35... Ra6 {[%clk 0:01:14.5]} 36. Rc8 {[%clk 0:00:45.3]}
36... Nxc6 {[%clk 0:01:13.3]} 37. Rc7 {[%clk 0:00:37.6]} 37... Ra1+ {[%clk
0:01:11.3]} 38. Kg2 {[%clk 0:00:37]} 38... Ra2+ {[%clk 0:01:12.2]} 39. Kh3
{[%clk 0:00:36.7]} 39... Na5 {[%clk 0:01:05.3]} 40. Ra7 {[%clk 0:00:34.8]} 40...
Ra1 {[%clk 0:00:58.8]} 41. c4 {[%clk 0:00:31.3]} 41... Rd1 {[%clk 0:00:58.3]}
42. Rxa5 {[%clk 0:00:29.3]} 42... Rxd4 {[%clk 0:00:57.6]} 43. Rc5 {[%clk
0:00:28.3]} 43... Rd2 {[%clk 0:00:57.2]} 44. Rc7 {[%clk 0:00:27.4]} 44... Rc2
{[%clk 0:00:57]} 45. Rc5 {[%clk 0:00:25.2]} 45... Kh6 {[%clk 0:00:54.4]} 46. Rc7
{[%clk 0:00:25]} 46... Kg6 {[%clk 0:00:53.8]} 47. Rc6 {[%clk 0:00:25]} 47... Rc1
{[%clk 0:00:53.5]} 48. Rc7 {[%clk 0:00:25]} 48... Kf6 {[%clk 0:00:53.5]} 49. Rc5
{[%clk 0:00:25]} 49... g6 {[%clk 0:00:53.3]} 50. Rc7 {[%clk 0:00:24.9]} 50...
Rc2 {[%clk 0:00:52.1]} 51. Rc6 {[%clk 0:00:25]} 51... Ke7 {[%clk 0:00:51]} 52.
Rc7+ {[%clk 0:00:25.1]} 52... Kf6 {[%clk 0:00:50.6]} 53. Rc6 {[%clk 0:00:25.2]}
53... Kf5 {[%clk 0:00:48.7]} 54. Rc5+ {[%clk 0:00:25.1]} 54... Kf6 {[%clk
0:00:47.4]} 55. Rc6 {[%clk 0:00:25.3]} 1/2-1/2

[Event "*** Titled Tuesday Blitz"]
[Site "Chess.com"]
[Date "2021.04.20"]
[Round "1"]
[White "Nozdrachev_Leonid"]
[Black "yuki_chess123"]
[Result "0-1"]
[WhiteElo "2536"]
[BlackElo "2239"]
[TimeControl "180+1"]
[EndTime "10:07:05 PDT"]
[Termination "yuki_chess123 won by resignation"]

1. e4 {[%clk 0:02:59.7]} 1... g6 {[%clk 0:02:59.6]} 2. d4 {[%clk 0:02:58.9]}
2... Bg7 {[%clk 0:02:59.5]} 3. Nf3 {[%clk 0:02:57.9]} 3... c6 {[%clk 0:02:59.1]}
4. Nc3 {[%clk 0:02:54.7]} 4... d5 {[%clk 0:02:59]} 5. Bd3 {[%clk 0:02:51.5]}
5... Bg4 {[%clk 0:02:58.1]} 6. Be3 {[%clk 0:02:49.1]} 6... Nf6 {[%clk
0:02:56.5]} 7. e5 {[%clk 0:02:47.1]} 7... Nfd7 {[%clk 0:02:56.7]} 8. h3 {[%clk
0:02:43.5]} 8... Bxf3 {[%clk 0:02:56.8]} 9. Qxf3 {[%clk 0:02:44.4]} 9... e6
{[%clk 0:02:57.3]} 10. Ne2 {[%clk 0:02:41.6]} 10... c5 {[%clk 0:02:57.2]} 11. c3
{[%clk 0:02:40.9]} 11... Nc6 {[%clk 0:02:57.9]} 12. O-O {[%clk 0:02:38.7]} 12...
cxd4 {[%clk 0:02:57.6]} 13. cxd4 {[%clk 0:02:38]} 13... O-O {[%clk 0:02:58.3]}
14. a3 {[%clk 0:02:36.3]} 14... Ndxe5 {[%clk 0:02:54.3]} 15. dxe5 {[%clk
0:02:25.4]} 15... Nxe5 {[%clk 0:02:55.2]} 16. Qg3 {[%clk 0:02:23.5]} 16... Nxd3
{[%clk 0:02:55.1]} 17. Bg5 {[%clk 0:02:21]} 17... f6 {[%clk 0:02:55.2]} 18. Bxf6
{[%clk 0:02:07.5]} 18... Qxf6 {[%clk 0:02:33.9]} 19. Qxd3 {[%clk 0:02:07.1]}
19... Rac8 {[%clk 0:02:31.6]} 20. Rab1 {[%clk 0:01:52.3]} 20... Rc4 {[%clk
0:02:29.6]} 21. b3 {[%clk 0:01:47.2]} 21... Rc6 {[%clk 0:02:25.5]} 22. Qb5
{[%clk 0:01:40]} 22... Rf7 {[%clk 0:02:21.1]} 23. Qd3 {[%clk 0:01:32.7]} 23...
Rfc7 {[%clk 0:02:19.9]} 24. Rbe1 {[%clk 0:01:10]} 24... a6 {[%clk 0:02:16.5]}
25. a4 {[%clk 0:01:08.5]} 25... Rc2 {[%clk 0:02:02.9]} 26. g3 {[%clk 0:00:58.9]}
26... g5 {[%clk 0:01:53.2]} 27. Qe3 {[%clk 0:00:49.1]} 27... e5 {[%clk
0:01:41.6]} 28. Qd3 {[%clk 0:00:36.9]} 28... Qc6 {[%clk 0:01:34.3]} 29. Qf5
{[%clk 0:00:34.3]} 29... h6 {[%clk 0:01:31]} 30. Rc1 {[%clk 0:00:30.2]} 30...
Qf6 {[%clk 0:01:16]} 31. Rxc2 {[%clk 0:00:24.4]} 31... Qxf5 {[%clk 0:01:15.9]}
32. Rxc7 {[%clk 0:00:24.4]} 32... d4 {[%clk 0:01:12.1]} 33. Rxb7 {[%clk
0:00:21.4]} 33... Qf3 {[%clk 0:01:08.9]} 34. Rb8+ {[%clk 0:00:19.9]} 34... Kh7
{[%clk 0:01:08.5]} 35. Nc1 {[%clk 0:00:15.3]} 35... d3 {[%clk 0:01:07.4]} 36.
Rd8 {[%clk 0:00:14.3]} 36... e4 {[%clk 0:01:07.5]} 37. b4 {[%clk 0:00:13.6]}
37... Bc3 {[%clk 0:01:02.8]} 38. b5 {[%clk 0:00:12.8]} 38... axb5 {[%clk
0:01:01.7]} 39. axb5 {[%clk 0:00:13.7]} 39... Ba5 {[%clk 0:01:00.8]} 40. Nb3
{[%clk 0:00:13.5]} 40... Bxd8 {[%clk 0:01:00.4]} 41. Nd4 {[%clk 0:00:12.1]}
41... Qf6 {[%clk 0:00:59.4]} 42. Nc6 {[%clk 0:00:12.1]} 42... Bb6 {[%clk
0:00:59]} 43. Nb4 {[%clk 0:00:09.9]} 43... d2 {[%clk 0:00:58.8]} 44. Nd5 {[%clk
0:00:09.6]} 44... Qxf2+ {[%clk 0:00:58.4]} 45. Rxf2 {[%clk 0:00:07.8]} 45...
d1=Q+ {[%clk 0:00:58.9]} 46. Kg2 {[%clk 0:00:08.2]} 46... Bxf2 {[%clk
0:00:58.5]} 47. Nf6+ {[%clk 0:00:07.2]} 47... Kg6 {[%clk 0:00:58.3]} 48. Nxe4
{[%clk 0:00:08.1]} 48... Qd5 {[%clk 0:00:58]} 49. Kf3 {[%clk 0:00:07.7]} 49...
Bb6 {[%clk 0:00:57.5]} 50. g4 {[%clk 0:00:07]} 50... Qd3+ {[%clk 0:00:56.6]} 0-1

[Event "*** Titled Tuesday Blitz"]
[Site "Chess.com"]
[Date "2021.04.20"]
[Round "1"]
[White "WinstonSilvakov"]
[Black "kleopl"]
[Result "0-1"]
[WhiteElo "2095"]
[BlackElo "2501"]
[TimeControl "180+1"]
[EndTime "10:07:06 PDT"]
[Termination "kleopl won by resignation"]

1. e4 {[%clk 0:02:58.2]} 1... c6 {[%clk 0:02:59.4]} 2. d4 {[%clk 0:02:56.7]}
2... d5 {[%clk 0:03:00.3]} 3. exd5 {[%clk 0:02:56]} 3... cxd5 {[%clk 0:03:01]}
4. c4 {[%clk 0:02:56.3]} 4... Nf6 {[%clk 0:03:00.5]} 5. Nc3 {[%clk 0:02:57.2]}
5... g6 {[%clk 0:03:00.9]} 6. Nf3 {[%clk 0:02:57.6]} 6... Bg7 {[%clk 0:03:00.8]}
7. Be2 {[%clk 0:02:54.3]} 7... O-O {[%clk 0:03:00.3]} 8. O-O {[%clk 0:02:53.3]}
8... dxc4 {[%clk 0:02:59.4]} 9. Bxc4 {[%clk 0:02:51.4]} 9... Nbd7 {[%clk
0:03:00]} 10. Bb3 {[%clk 0:02:46.4]} 10... Nb6 {[%clk 0:02:59.3]} 11. Ne5 {[%clk
0:02:44.1]} 11... Nfd5 {[%clk 0:02:53.1]} 12. Qe2 {[%clk 0:02:36.4]} 12... Qd6
{[%clk 0:02:41]} 13. Nb5 {[%clk 0:02:25]} 13... Qd8 {[%clk 0:02:37.6]} 14. Rd1
{[%clk 0:01:51.9]} 14... Bf5 {[%clk 0:02:28.6]} 15. h3 {[%clk 0:01:47.3]} 15...
a6 {[%clk 0:02:19.8]} 16. Nc3 {[%clk 0:01:46.9]} 16... Rc8 {[%clk 0:02:15.4]}
17. Ne4 {[%clk 0:01:46.9]} 17... Bxe4 {[%clk 0:02:04.4]} 18. Qxe4 {[%clk
0:01:45.4]} 18... e6 {[%clk 0:02:04.6]} 19. Nd3 {[%clk 0:01:32.4]} 19... Qe7
{[%clk 0:01:38.3]} 20. Nc5 {[%clk 0:01:32]} 20... Rfd8 {[%clk 0:01:34.8]} 21.
Bd2 {[%clk 0:01:28.6]} 21... Bxd4 {[%clk 0:01:24.9]} 22. Qxd4 {[%clk 0:01:19.7]}
22... Qxc5 {[%clk 0:01:24.4]} 23. Qh4 {[%clk 0:01:10.8]} 23... Qe7 {[%clk
0:01:10.5]} 24. Qh6 {[%clk 0:01:07.1]} 24... Qf8 {[%clk 0:01:07.6]} 25. Qh4
{[%clk 0:01:05.2]} 25... Qg7 {[%clk 0:01:05.3]} 26. Ba5 {[%clk 0:00:58.3]} 26...
Re8 {[%clk 0:00:57.5]} 27. Rd2 {[%clk 0:00:55.6]} 27... Rc5 {[%clk 0:00:44.4]}
28. Bxb6 {[%clk 0:00:31.5]} 28... Nxb6 {[%clk 0:00:45.3]} 29. Rad1 {[%clk
0:00:28.6]} 29... h5 {[%clk 0:00:39.8]} 30. Rd8 {[%clk 0:00:28.6]} 30... Rc8
{[%clk 0:00:36.5]} 31. R8d6 {[%clk 0:00:26.8]} 31... Na8 {[%clk 0:00:30.2]} 32.
Rd7 {[%clk 0:00:26.6]} 32... Nc7 {[%clk 0:00:23.8]} 33. Rxc7 {[%clk 0:00:27]}
33... Rxc7 {[%clk 0:00:22.9]} 34. Rd8 {[%clk 0:00:24.9]} 34... Rc8 {[%clk
0:00:21.5]} 35. Rxc8 {[%clk 0:00:22.6]} 35... Rxc8 {[%clk 0:00:21]} 36. Qe7
{[%clk 0:00:23.5]} 36... Qe5 {[%clk 0:00:17]} 37. g3 {[%clk 0:00:19.1]} 37...
Rc1+ {[%clk 0:00:16.1]} 0-1

[Event "*** Titled Tuesday Blitz"]
[Site "Chess.com"]
[Date "2021.04.20"]
[Round "1"]
[White "guillembaches"]
[Black "esteban062000"]
[Result "1-0"]
[WhiteElo "2511"]
[BlackElo "2171"]
[TimeControl "180+1"]
[EndTime "10:07:07 PDT"]
[Termination "guillembaches won by resignation"]

1. e4 {[%clk 0:03:00.9]} 1... c5 {[%clk 0:02:58.3]} 2. Nf3 {[%clk 0:03:01]} 2...
g6 {[%clk 0:02:58.3]} 3. d4 {[%clk 0:03:00.8]} 3... cxd4 {[%clk 0:02:59.2]} 4.
Qxd4 {[%clk 0:03:01.2]} 4... Nf6 {[%clk 0:02:59.2]} 5. c4 {[%clk 0:03:01.3]}
5... Nc6 {[%clk 0:02:52.6]} 6. Qe3 {[%clk 0:03:01.5]} 6... d6 {[%clk 0:02:52.3]}
7. h3 {[%clk 0:03:01.1]} 7... Bg7 {[%clk 0:02:52.1]} 8. Be2 {[%clk 0:03:01.3]}
8... O-O {[%clk 0:02:51.8]} 9. O-O {[%clk 0:03:01.4]} 9... Be6 {[%clk
0:02:51.8]} 10. Nc3 {[%clk 0:03:01.4]} 10... a6 {[%clk 0:02:48.7]} 11. Rd1
{[%clk 0:03:00.3]} 11... Qa5 {[%clk 0:02:48.1]} 12. Bd2 {[%clk 0:02:58.7]} 12...
Rfc8 {[%clk 0:02:45.3]} 13. Nd5 {[%clk 0:02:53]} 13... Qd8 {[%clk 0:02:45.1]}
14. Nb6 {[%clk 0:02:50.4]} 14... Rab8 {[%clk 0:02:41.5]} 15. Nxc8 {[%clk
0:02:48.6]} 15... Rxc8 {[%clk 0:02:42.4]} 16. Bc3 {[%clk 0:02:44]} 16... Na5
{[%clk 0:02:39.3]} 17. c5 {[%clk 0:02:30.1]} 17... Qc7 {[%clk 0:02:28.4]} 18.
cxd6 {[%clk 0:02:26.6]} 18... exd6 {[%clk 0:02:28.4]} 19. Rac1 {[%clk
0:02:22.2]} 19... Nc6 {[%clk 0:01:44.2]} 20. Qf4 {[%clk 0:02:11.7]} 20... Nh5
{[%clk 0:01:30.8]} 21. Qxd6 {[%clk 0:02:08]} 21... Bxc3 {[%clk 0:01:29]} 22.
Rxc3 {[%clk 0:02:05.9]} 22... Bxa2 {[%clk 0:01:25.2]} 23. Qxc7 {[%clk
0:02:00.7]} 23... Rxc7 {[%clk 0:01:24.7]} 24. b3 {[%clk 0:01:56]} 24... Nf4
{[%clk 0:01:21.8]} 25. Bf1 {[%clk 0:01:49.5]} 25... Re7 {[%clk 0:01:19.5]} 26.
g3 {[%clk 0:01:36.6]} 26... Nh5 {[%clk 0:01:10.1]} 27. Re3 {[%clk 0:01:18.1]}
27... Nb4 {[%clk 0:00:36.5]} 28. Bc4 {[%clk 0:01:15]} 28... b5 {[%clk
0:00:35.8]} 29. Bd5 {[%clk 0:01:14.7]} 29... Nf6 {[%clk 0:00:33.8]} 30. Nd4
{[%clk 0:01:05.2]} 30... Nfxd5 {[%clk 0:00:31.7]} 31. exd5 {[%clk 0:01:05.5]}
31... Rxe3 {[%clk 0:00:30.9]} 32. fxe3 {[%clk 0:01:05.1]} 32... Nxd5 {[%clk
0:00:30.4]} 33. Ra1 {[%clk 0:00:58.1]} 33... Nb4 {[%clk 0:00:27.1]} 34. Nc6
{[%clk 0:00:56.8]} 34... Nxc6 {[%clk 0:00:24.1]} 35. Rxa2 {[%clk 0:00:57.2]}
35... Nb4 {[%clk 0:00:24.6]} 36. Rd2 {[%clk 0:00:57.1]} 36... Kg7 {[%clk
0:00:23.1]} 37. Rd4 {[%clk 0:00:56.5]} 37... Nc6 {[%clk 0:00:22.9]} 38. Rd6
{[%clk 0:00:56.5]} 38... Nb4 {[%clk 0:00:23.2]} 39. Kf2 {[%clk 0:00:56.5]} 39...
Kf8 {[%clk 0:00:23]} 40. e4 {[%clk 0:00:53.1]} 40... Ke7 {[%clk 0:00:23.4]} 41.
e5 {[%clk 0:00:53.4]} 41... h6 {[%clk 0:00:22.5]} 42. Ke3 {[%clk 0:00:52.2]}
42... h5 {[%clk 0:00:20.5]} 43. Ke4 {[%clk 0:00:51.9]} 43... Ke8 {[%clk
0:00:20.3]} 44. g4 {[%clk 0:00:51.9]} 44... Ke7 {[%clk 0:00:20.5]} 45. gxh5
{[%clk 0:00:50.8]} 45... gxh5 {[%clk 0:00:21.4]} 46. Kf5 {[%clk 0:00:49.6]}
46... a5 {[%clk 0:00:21.3]} 47. Rb6 {[%clk 0:00:46.8]} 47... a4 {[%clk
0:00:20.5]} 48. Rxb5 {[%clk 0:00:45.8]} 48... Nc6 {[%clk 0:00:20.9]} 49. bxa4
{[%clk 0:00:44.4]} 49... Nd4+ {[%clk 0:00:21.3]} 50. Kg5 {[%clk 0:00:44.2]}
50... Nxb5 {[%clk 0:00:22.2]} 51. axb5 {[%clk 0:00:44.5]} 51... Ke6 {[%clk
0:00:22.5]} 52. b6 {[%clk 0:00:43.6]} 52... Kxe5 {[%clk 0:00:22.7]} 53. b7
{[%clk 0:00:43.4]} 53... f6+ {[%clk 0:00:21.4]} 54. Kxh5 {[%clk 0:00:43.6]}
54... f5 {[%clk 0:00:21.3]} 55. b8=Q+ {[%clk 0:00:43.9]} 1-0